[Event "*** Titled Tuesday Blitz"]
[Site "Chess.com"]
[Date "2020.11.10"]
[Round "2"]
[White "PavlovDanila"]
[Black "Triumphmate"]
[Result "1-0"]
[WhiteElo "2673"]
[BlackElo "2372"]
[TimeControl "180+1"]
[EndTime "10:20:40 PST"]
[Termination "PavlovDanila won by checkmate"]

1. e4 {[%clk 0:03:00.9]} 1... d5 {[%clk 0:02:53.2]} 2. exd5 {[%clk 0:03:00.1]}
2... f6 {[%clk 0:02:51.9]} 3. Nc3 {[%clk 0:02:55.4]} 3... c6 {[%clk 0:02:52]} 4.
Bd3 {[%clk 0:02:46.9]} 4... g6 {[%clk 0:02:45.5]} 5. Be4 {[%clk 0:02:45]} 5...
e5 {[%clk 0:02:37.6]} 6. dxc6 {[%clk 0:02:32.7]} 6... Nxc6 {[%clk 0:02:38.5]} 7.
Nf3 {[%clk 0:02:32.5]} 7... Bc5 {[%clk 0:02:35.6]} 8. O-O {[%clk 0:02:17.5]}
8... Nge7 {[%clk 0:02:33.7]} 9. Re1 {[%clk 0:02:15.2]} 9... O-O {[%clk
0:02:32.8]} 10. h3 {[%clk 0:02:11.7]} 10... Be6 {[%clk 0:02:31.5]} 11. d3 {[%clk
0:01:55.2]} 11... Qc7 {[%clk 0:02:30.8]} 12. Bh6 {[%clk 0:01:46.3]} 12... Rf7
{[%clk 0:02:26.3]} 13. Be3 {[%clk 0:01:21.1]} 13... Bxe3 {[%clk 0:02:25.2]} 14.
fxe3 {[%clk 0:01:10.3]} 14... Rd8 {[%clk 0:02:03.8]} 15. Qe2 {[%clk 0:01:09.1]}
15... h6 {[%clk 0:02:02.4]} 16. Bxc6 {[%clk 0:00:59.7]} 16... Nxc6 {[%clk
0:01:51.8]} 17. Rad1 {[%clk 0:00:59]} 17... f5 {[%clk 0:01:45.3]} 18. d4 {[%clk
0:00:51]} 18... e4 {[%clk 0:01:44.2]} 19. Nh2 {[%clk 0:00:36.1]} 19... Ne7
{[%clk 0:01:40.1]} 20. Nb1 {[%clk 0:00:30.4]} 20... Bc4 {[%clk 0:01:34.9]} 21.
Qd2 {[%clk 0:00:24.5]} 21... Bxa2 {[%clk 0:01:35.1]} 22. b3 {[%clk 0:00:18.3]}
22... Bxb1 {[%clk 0:01:34.3]} 23. Rxb1 {[%clk 0:00:19.2]} 23... b5 {[%clk
0:01:30.7]} 24. Rbc1 {[%clk 0:00:19.6]} 24... Nc6 {[%clk 0:01:21.2]} 25. Qe2
{[%clk 0:00:13]} 25... a6 {[%clk 0:01:17.4]} 26. c3 {[%clk 0:00:10.5]} 26... Qb6
{[%clk 0:01:03]} 27. Nf1 {[%clk 0:00:09.9]} 27... Qa5 {[%clk 0:01:00.2]} 28. Qb2
{[%clk 0:00:08.8]} 28... Qb6 {[%clk 0:00:57.2]} 29. c4 {[%clk 0:00:09.1]} 29...
bxc4 {[%clk 0:00:57]} 30. Rxc4 {[%clk 0:00:09.7]} 30... Na5 {[%clk 0:00:57.2]}
31. Rc3 {[%clk 0:00:09.9]} 31... Rc7 {[%clk 0:00:55.6]} 32. Nd2 {[%clk
0:00:09.7]} 32... Rdc8 {[%clk 0:00:53.9]} 33. Rec1 {[%clk 0:00:09.2]} 33... h5
{[%clk 0:00:47]} 34. Rxc7 {[%clk 0:00:04.6]} 34... Rxc7 {[%clk 0:00:46.8]} 35.
Rxc7 {[%clk 0:00:04.6]} 35... Qxc7 {[%clk 0:00:47.7]} 36. Qa3 {[%clk 0:00:05]}
36... Kg7 {[%clk 0:00:44.7]} 37. Qb4 {[%clk 0:00:02.8]} 37... Nb7 {[%clk
0:00:41.2]} 38. Nc4 {[%clk 0:00:02.6]} 38... a5 {[%clk 0:00:37.3]} 39. Qc3
{[%clk 0:00:03.2]} 39... Nd6 {[%clk 0:00:35.9]} 40. d5+ {[%clk 0:00:04]} 40...
Kh7 {[%clk 0:00:36]} 41. Qe5 {[%clk 0:00:04.5]} 41... Nb5 {[%clk 0:00:32.6]} 42.
Qe6 {[%clk 0:00:05.2]} 42... a4 {[%clk 0:00:28.3]} 43. d6 {[%clk 0:00:05.7]}
43... Qd8 {[%clk 0:00:20.7]} 44. bxa4 {[%clk 0:00:05.4]} 44... Na7 {[%clk
0:00:18.1]} 45. Ne5 {[%clk 0:00:05.2]} 45... Kh6 {[%clk 0:00:19]} 46. Nf7+
{[%clk 0:00:04.6]} 46... Kg7 {[%clk 0:00:18.6]} 47. Nxd8 {[%clk 0:00:05.5]}
47... Kh6 {[%clk 0:00:18.1]} 48. Qf7 {[%clk 0:00:05.8]} 48... Kg5 {[%clk
0:00:19]} 49. Ne6+ {[%clk 0:00:06.1]} 49... Kh4 {[%clk 0:00:18.8]} 50. Qxg6
{[%clk 0:00:06.6]} 50... Nc6 {[%clk 0:00:17.9]} 51. Qg5# {[%clk 0:00:07.3]} 1-0

[Event "*** Titled Tuesday Blitz"]
[Site "Chess.com"]
[Date "2020.11.10"]
[Round "2"]
[White "Msb2"]
[Black "AlexSuv"]
[Result "0-1"]
[WhiteElo "2891"]
[BlackElo "2582"]
[TimeControl "180+1"]
[EndTime "10:20:42 PST"]
[Termination "AlexSuv won by checkmate"]

1. d4 {[%clk 0:03:00.6]} 1... Nf6 {[%clk 0:03:00]} 2. Nf3 {[%clk 0:03:01]} 2...
e6 {[%clk 0:02:59.1]} 3. Bf4 {[%clk 0:03:01.1]} 3... c5 {[%clk 0:02:59.2]} 4. e3
{[%clk 0:03:01.5]} 4... b6 {[%clk 0:02:57.6]} 5. Nc3 {[%clk 0:02:54.5]} 5... Bb7
{[%clk 0:02:45.5]} 6. Nb5 {[%clk 0:02:51.3]} 6... Nd5 {[%clk 0:02:42.3]} 7. Nd6+
{[%clk 0:02:47.8]} 7... Bxd6 {[%clk 0:02:36.3]} 8. Bxd6 {[%clk 0:02:48.7]} 8...
cxd4 {[%clk 0:02:33.1]} 9. Qxd4 {[%clk 0:02:41]} 9... f6 {[%clk 0:02:27.7]} 10.
c4 {[%clk 0:02:29.9]} 10... Ne7 {[%clk 0:02:27.3]} 11. Bd3 {[%clk 0:02:29.6]}
11... Nbc6 {[%clk 0:02:14.4]} 12. Qh4 {[%clk 0:02:29.1]} 12... Kf7 {[%clk
0:01:52]} 13. O-O-O {[%clk 0:02:13.5]} 13... Rc8 {[%clk 0:01:49.5]} 14. Kb1
{[%clk 0:02:13.6]} 14... g6 {[%clk 0:01:43.3]} 15. e4 {[%clk 0:02:04.1]} 15...
e5 {[%clk 0:01:36.5]} 16. g4 {[%clk 0:01:34.9]} 16... h6 {[%clk 0:01:31.4]} 17.
Qg3 {[%clk 0:01:34.7]} 17... g5 {[%clk 0:01:28.4]} 18. h4 {[%clk 0:01:34.5]}
18... Ng6 {[%clk 0:01:25]} 19. hxg5 {[%clk 0:01:34.8]} 19... hxg5 {[%clk
0:01:24.3]} 20. c5 {[%clk 0:01:30.7]} 20... Nb4 {[%clk 0:01:12.1]} 21. Bc4+
{[%clk 0:01:26.7]} 21... Kg7 {[%clk 0:01:11.8]} 22. Nd2 {[%clk 0:01:26.2]} 22...
bxc5 {[%clk 0:01:08.4]} 23. Qb3 {[%clk 0:01:08.8]} 23... Qb6 {[%clk 0:01:04]}
24. a3 {[%clk 0:00:42.6]} 24... Rxh1 {[%clk 0:01:01.2]} 25. Rxh1 {[%clk
0:00:41.1]} 25... Qxd6 {[%clk 0:01:01.4]} 26. axb4 {[%clk 0:00:41.1]} 26... Qxd2
{[%clk 0:01:00.3]} 27. Rd1 {[%clk 0:00:38.8]} 27... Bxe4+ {[%clk 0:00:59.7]} 28.
Ka1 {[%clk 0:00:39.3]} 28... Qxb4 {[%clk 0:00:53.1]} 29. Rxd7+ {[%clk
0:00:39.8]} 29... Kh6 {[%clk 0:00:51.1]} 30. Qxb4 {[%clk 0:00:20.7]} 30... cxb4
{[%clk 0:00:51.1]} 31. b3 {[%clk 0:00:21.6]} 31... a5 {[%clk 0:00:46.9]} 32. Ra7
{[%clk 0:00:20.9]} 32... Rc5 {[%clk 0:00:46.9]} 33. Kb2 {[%clk 0:00:19.9]} 33...
Nf4 {[%clk 0:00:46.5]} 34. Rf7 {[%clk 0:00:19.7]} 34... Kg6 {[%clk 0:00:45]} 35.
Rf8 {[%clk 0:00:20.2]} 35... Bd5 {[%clk 0:00:45.1]} 36. Bf1 {[%clk 0:00:17.4]}
36... Rc3 {[%clk 0:00:44.8]} 37. Rd8 {[%clk 0:00:15.8]} 37... Rxb3+ {[%clk
0:00:44.3]} 38. Kc1 {[%clk 0:00:16.7]} 38... Rc3+ {[%clk 0:00:44.5]} 39. Kd2
{[%clk 0:00:17.2]} 39... Be4 {[%clk 0:00:44.3]} 40. Bb5 {[%clk 0:00:17.1]} 40...
Rc2+ {[%clk 0:00:43.5]} 41. Ke3 {[%clk 0:00:17.2]} 41... f5 {[%clk 0:00:34.3]}
42. gxf5+ {[%clk 0:00:16.7]} 42... Bxf5 {[%clk 0:00:34.2]} 43. Rg8+ {[%clk
0:00:14.5]} 43... Kf6 {[%clk 0:00:33.5]} 44. Ra8 {[%clk 0:00:14.7]} 44... Rc3+
{[%clk 0:00:33]} 45. Kd2 {[%clk 0:00:14.9]} 45... Rc2+ {[%clk 0:00:31.5]} 46.
Ke3 {[%clk 0:00:14.9]} 46... Nd5+ {[%clk 0:00:32]} 47. Kf3 {[%clk 0:00:15.5]}
47... g4+ {[%clk 0:00:31.8]} 48. Kg3 {[%clk 0:00:15.8]} 48... Rc3+ {[%clk
0:00:32.2]} 49. Kh2 {[%clk 0:00:14.6]} 49... b3 {[%clk 0:00:30.4]} 50. Rb8
{[%clk 0:00:06.4]} 50... b2 {[%clk 0:00:30]} 51. Rg8 {[%clk 0:00:06.4]} 51...
b1=Q {[%clk 0:00:28.6]} 52. Rf8+ {[%clk 0:00:07.3]} 52... Kg7 {[%clk 0:00:28.6]}
53. Rg8+ {[%clk 0:00:08.2]} 53... Kxg8 {[%clk 0:00:27.6]} 54. Be2 {[%clk
0:00:09.1]} 54... Qe4 {[%clk 0:00:27.3]} 55. Bf3 {[%clk 0:00:09.2]} 55... Qxf3
{[%clk 0:00:26.9]} 56. Kg1 {[%clk 0:00:10.1]} 56... Rc1+ {[%clk 0:00:27.4]} 57.
Kh2 {[%clk 0:00:11]} 57... Rh1# {[%clk 0:00:28]} 0-1

[Event "*** Titled Tuesday Blitz"]
[Site "Chess.com"]
[Date "2020.11.10"]
[Round "2"]
[White "SlavenPastar"]
[Black "Gabrielian_Artur"]
[Result "1-0"]
[WhiteElo "2549"]
[BlackElo "2787"]
[TimeControl "180+1"]
[EndTime "10:20:50 PST"]
[Termination "SlavenPastar won by resignation"]

1. d4 {[%clk 0:03:00.9]} 1... Nf6 {[%clk 0:02:59.4]} 2. c4 {[%clk 0:03:00.5]}
2... c5 {[%clk 0:02:59.2]} 3. d5 {[%clk 0:02:56.7]} 3... e6 {[%clk 0:02:59.2]}
4. Nc3 {[%clk 0:02:55.6]} 4... exd5 {[%clk 0:02:59.6]} 5. cxd5 {[%clk
0:02:56.5]} 5... d6 {[%clk 0:03:00.3]} 6. Nf3 {[%clk 0:02:56.4]} 6... g6 {[%clk
0:03:00.7]} 7. Bg5 {[%clk 0:02:55.7]} 7... h6 {[%clk 0:03:00.4]} 8. Bh4 {[%clk
0:02:54.4]} 8... g5 {[%clk 0:03:00.4]} 9. Bg3 {[%clk 0:02:54.4]} 9... Nh5 {[%clk
0:02:58.5]} 10. e3 {[%clk 0:02:50.5]} 10... Nxg3 {[%clk 0:02:58]} 11. hxg3
{[%clk 0:02:50.1]} 11... Bg7 {[%clk 0:02:58.3]} 12. Bd3 {[%clk 0:02:44.8]} 12...
a6 {[%clk 0:02:56.8]} 13. a4 {[%clk 0:02:44.2]} 13... Qe7 {[%clk 0:02:56.3]} 14.
Nd2 {[%clk 0:02:29.9]} 14... Nd7 {[%clk 0:02:53.4]} 15. Nc4 {[%clk 0:02:09.2]}
15... Ne5 {[%clk 0:02:47.3]} 16. Nb6 {[%clk 0:01:54.3]} 16... Rb8 {[%clk
0:02:46.3]} 17. Nxc8 {[%clk 0:01:37.3]} 17... Nxd3+ {[%clk 0:02:27.6]} 18. Qxd3
{[%clk 0:01:38.2]} 18... Rxc8 {[%clk 0:02:27]} 19. O-O {[%clk 0:01:29.4]} 19...
c4 {[%clk 0:02:21.1]} 20. Qe2 {[%clk 0:01:17.4]} 20... O-O {[%clk 0:02:19]} 21.
a5 {[%clk 0:01:17.7]} 21... Rc5 {[%clk 0:02:14.6]} 22. Ra4 {[%clk 0:01:13]}
22... Qc7 {[%clk 0:02:04.7]} 23. Rd1 {[%clk 0:01:05.5]} 23... Re8 {[%clk
0:02:02.2]} 24. Qg4 {[%clk 0:00:57.2]} 24... Qc8 {[%clk 0:01:27.3]} 25. Qxc8
{[%clk 0:00:49.9]} 25... Rcxc8 {[%clk 0:01:27]} 26. Rb4 {[%clk 0:00:46.5]} 26...
Re7 {[%clk 0:01:26.8]} 27. Rb6 {[%clk 0:00:41.5]} 27... Be5 {[%clk 0:01:10.4]}
28. Ne4 {[%clk 0:00:12.4]} 28... Rd7 {[%clk 0:00:52.1]} 29. f4 {[%clk
0:00:11.1]} 29... gxf4 {[%clk 0:00:50.1]} 30. gxf4 {[%clk 0:00:10.9]} 30... Bg7
{[%clk 0:00:46.6]} 31. Nxd6 {[%clk 0:00:06.7]} 31... Rc5 {[%clk 0:00:42.8]} 32.
Nf5 {[%clk 0:00:06.6]} 32... Rxa5 {[%clk 0:00:33.1]} 33. e4 {[%clk 0:00:06.9]}
33... Rb5 {[%clk 0:00:33]} 34. Rxb5 {[%clk 0:00:06.8]} 34... axb5 {[%clk
0:00:33.4]} 35. Nxg7 {[%clk 0:00:07]} 35... Kxg7 {[%clk 0:00:33.3]} 36. Kf2
{[%clk 0:00:07.7]} 36... Kf6 {[%clk 0:00:28.7]} 37. Ke3 {[%clk 0:00:08.1]} 37...
Ke7 {[%clk 0:00:27.8]} 38. Kd4 {[%clk 0:00:08.7]} 38... b6 {[%clk 0:00:27.9]}
39. Ke5 {[%clk 0:00:08.3]} 39... f6+ {[%clk 0:00:20.4]} 40. Kd4 {[%clk
0:00:08.2]} 40... Rd8 {[%clk 0:00:19.7]} 41. Ra1 {[%clk 0:00:07.8]} 41... Kf7
{[%clk 0:00:12]} 42. Ra7+ {[%clk 0:00:07.8]} 42... Kg6 {[%clk 0:00:12.4]} 43.
Rb7 {[%clk 0:00:06.1]} 43... Ra8 {[%clk 0:00:10.4]} 44. Rxb6 {[%clk 0:00:06.3]}
44... Ra1 {[%clk 0:00:09.6]} 45. e5 {[%clk 0:00:05.9]} 45... Rd1+ {[%clk
0:00:09.5]} 46. Kc5 {[%clk 0:00:06.4]} 46... Rd2 {[%clk 0:00:07.4]} 47. Rxf6+
{[%clk 0:00:06.8]} 47... Kg7 {[%clk 0:00:08]} 48. d6 {[%clk 0:00:06.6]} 48...
Rxb2 {[%clk 0:00:07.5]} 49. d7 {[%clk 0:00:07.1]} 1-0

[Event "*** Titled Tuesday Blitz"]
[Site "Chess.com"]
[Date "2020.11.10"]
[Round "2"]
[White "GM_Crest"]
[Black "Mikasinski"]
[Result "1-0"]
[WhiteElo "2732"]
[BlackElo "2497"]
[TimeControl "180+1"]
[EndTime "10:20:51 PST"]
[Termination "GM_Crest won by resignation"]

1. d4 {[%clk 0:03:00.9]} 1... Nf6 {[%clk 0:03:00.3]} 2. c4 {[%clk 0:03:00.7]}
2... g6 {[%clk 0:03:00.8]} 3. Nc3 {[%clk 0:03:00.6]} 3... Bg7 {[%clk 0:03:01.4]}
4. e4 {[%clk 0:03:00.8]} 4... d6 {[%clk 0:03:02]} 5. Nf3 {[%clk 0:03:01.3]} 5...
O-O {[%clk 0:03:02.6]} 6. Be2 {[%clk 0:03:02]} 6... e5 {[%clk 0:03:02.3]} 7. Be3
{[%clk 0:03:02.6]} 7... h6 {[%clk 0:02:52.5]} 8. O-O {[%clk 0:02:49.1]} 8... Ng4
{[%clk 0:02:48.9]} 9. Bc1 {[%clk 0:02:48.7]} 9... Nc6 {[%clk 0:02:23.3]} 10. d5
{[%clk 0:02:30.3]} 10... Nd4 {[%clk 0:02:16.6]} 11. Nxd4 {[%clk 0:02:24.5]}
11... exd4 {[%clk 0:02:16.8]} 12. Bxg4 {[%clk 0:02:25.1]} 12... dxc3 {[%clk
0:02:12.4]} 13. bxc3 {[%clk 0:02:24.5]} 13... Bxc3 {[%clk 0:02:06.7]} 14. Bxh6
{[%clk 0:02:13.9]} 14... Qh4 {[%clk 0:01:59.1]} 15. Bxc8 {[%clk 0:02:07]} 15...
Qxh6 {[%clk 0:01:53.4]} 16. Bxb7 {[%clk 0:02:03.7]} 16... Bxa1 {[%clk
0:01:41.1]} 17. Qxa1 {[%clk 0:01:50.1]} 17... Rab8 {[%clk 0:01:34.3]} 18. Bc6
{[%clk 0:01:50.3]} 18... Qg7 {[%clk 0:01:28.4]} 19. Bb5 {[%clk 0:01:37.9]} 19...
Qxa1 {[%clk 0:01:27.8]} 20. Rxa1 {[%clk 0:01:38.8]} 20... Rb6 {[%clk 0:01:24.4]}
21. a4 {[%clk 0:01:39]} 21... a5 {[%clk 0:01:09.8]} 22. Re1 {[%clk 0:01:36.7]}
22... f6 {[%clk 0:01:02.9]} 23. f4 {[%clk 0:01:36.7]} 23... Kg7 {[%clk 0:00:48]}
24. Kf2 {[%clk 0:01:36]} 24... Rh8 {[%clk 0:00:43.6]} 25. h3 {[%clk 0:01:34]}
25... g5 {[%clk 0:00:35.1]} 26. e5 {[%clk 0:01:30.5]} 26... fxe5 {[%clk
0:00:27.3]} 27. fxe5 {[%clk 0:01:30.5]} 27... Rf8+ {[%clk 0:00:27.1]} 28. Kg3
{[%clk 0:01:29.6]} 28... dxe5 {[%clk 0:00:25.6]} 29. Rxe5 {[%clk 0:01:29.6]}
29... Rg6 {[%clk 0:00:12.1]} 30. c5 {[%clk 0:01:26]} 30... Rf4 {[%clk
0:00:08.3]} 31. Be8 {[%clk 0:01:06.2]} 31... Rgf6 {[%clk 0:00:08.2]} 32. Rxg5+
{[%clk 0:01:05.2]} 32... Kf8 {[%clk 0:00:08.7]} 33. Bb5 {[%clk 0:01:04.5]} 33...
Rd4 {[%clk 0:00:06.5]} 34. h4 {[%clk 0:01:00.2]} 34... Kf7 {[%clk 0:00:01.5]}
35. h5 {[%clk 0:00:58.9]} 35... Rh6 {[%clk 0:00:01.8]} 36. Rf5+ {[%clk
0:00:39.4]} 36... Kg7 {[%clk 0:00:01.6]} 37. Kf3 {[%clk 0:00:37.2]} 37... Rf6
{[%clk 0:00:01.8]} 38. Rxf6 {[%clk 0:00:30.1]} 38... Kxf6 {[%clk 0:00:02.7]} 39.
d6 {[%clk 0:00:30.6]} 39... cxd6 {[%clk 0:00:02.7]} 40. c6 {[%clk 0:00:31.1]}
40... Rd2 {[%clk 0:00:01.8]} 41. g4 {[%clk 0:00:28]} 41... Rc2 {[%clk
0:00:01.5]} 42. Kf4 {[%clk 0:00:27.4]} 42... Rc5 {[%clk 0:00:02]} 43. Bd3 {[%clk
0:00:17]} 43... Rxc6 {[%clk 0:00:02.1]} 44. g5+ {[%clk 0:00:17.5]} 44... Kg7
{[%clk 0:00:02.5]} 45. h6+ {[%clk 0:00:17.4]} 45... Kh8 {[%clk 0:00:02.7]} 46.
g6 {[%clk 0:00:17.7]} 46... Rc7 {[%clk 0:00:02.1]} 47. g7+ {[%clk 0:00:16.7]}
47... Rxg7 {[%clk 0:00:01.3]} 48. hxg7+ {[%clk 0:00:16.5]} 48... Kxg7 {[%clk
0:00:02.2]} 49. Ke4 {[%clk 0:00:17]} 49... Kf6 {[%clk 0:00:02.8]} 50. Kd5 {[%clk
0:00:17.4]} 50... Ke7 {[%clk 0:00:03.5]} 51. Bf5 {[%clk 0:00:17.7]} 51... Kf6
{[%clk 0:00:02.9]} 52. Bh3 {[%clk 0:00:17.6]} 52... Ke7 {[%clk 0:00:03.8]} 53.
Bg4 {[%clk 0:00:18.1]} 53... Kf6 {[%clk 0:00:03.5]} 54. Kxd6 {[%clk 0:00:19]}
54... Kg5 {[%clk 0:00:04.2]} 55. Bc8 {[%clk 0:00:18.7]} 55... Kf4 {[%clk
0:00:05.1]} 56. Kc5 {[%clk 0:00:19.1]} 56... Ke3 {[%clk 0:00:05.9]} 57. Kb5
{[%clk 0:00:19.9]} 57... Kd3 {[%clk 0:00:06.8]} 58. Kxa5 {[%clk 0:00:20.5]}
58... Kd4 {[%clk 0:00:07.7]} 1-0

[Event "*** Titled Tuesday Blitz"]
[Site "Chess.com"]
[Date "2020.11.10"]
[Round "2"]
[White "AwareIdea"]
[Black "PaulfromSPb"]
[Result "0-1"]
[WhiteElo "2492"]
[BlackElo "2711"]
[TimeControl "180+1"]
[EndTime "10:20:51 PST"]
[Termination "PaulfromSPb won on time"]

1. d4 {[%clk 0:03:00.9]} 1... Nf6 {[%clk 0:02:56.5]} 2. c4 {[%clk 0:02:59.6]}
2... e6 {[%clk 0:02:56.3]} 3. g3 {[%clk 0:02:59.3]} 3... c5 {[%clk 0:02:55.6]}
4. d5 {[%clk 0:02:59.3]} 4... exd5 {[%clk 0:02:53.6]} 5. cxd5 {[%clk 0:03:00.2]}
5... b5 {[%clk 0:02:53.8]} 6. Bg2 {[%clk 0:02:57.3]} 6... d6 {[%clk 0:02:53.7]}
7. a4 {[%clk 0:02:50.4]} 7... b4 {[%clk 0:02:51.3]} 8. Nd2 {[%clk 0:02:48.3]}
8... g6 {[%clk 0:02:48.9]} 9. Nc4 {[%clk 0:02:47.4]} 9... Ba6 {[%clk 0:02:48.4]}
10. Qc2 {[%clk 0:02:43.2]} 10... Bg7 {[%clk 0:02:44.9]} 11. Nh3 {[%clk
0:02:34.5]} 11... O-O {[%clk 0:02:44]} 12. O-O {[%clk 0:02:34.2]} 12... Re8
{[%clk 0:02:38.7]} 13. Nf4 {[%clk 0:02:31.4]} 13... Ng4 {[%clk 0:02:33.2]} 14.
h3 {[%clk 0:02:27.6]} 14... Ne5 {[%clk 0:02:32.8]} 15. Nxe5 {[%clk 0:02:25.3]}
15... Rxe5 {[%clk 0:02:31.9]} 16. Nd3 {[%clk 0:02:23.4]} 16... Re8 {[%clk
0:02:31.1]} 17. Bf4 {[%clk 0:02:21.3]} 17... b3 {[%clk 0:02:20.6]} 18. Qd2
{[%clk 0:02:15.9]} 18... Bxd3 {[%clk 0:01:52.7]} 19. Qxd3 {[%clk 0:02:01.5]}
19... Bxb2 {[%clk 0:01:52]} 20. Rab1 {[%clk 0:01:59.8]} 20... Be5 {[%clk
0:01:52.3]} 21. Bh6 {[%clk 0:01:48.2]} 21... b2 {[%clk 0:01:46.1]} 22. Bd2
{[%clk 0:01:39]} 22... Nd7 {[%clk 0:01:42.5]} 23. f4 {[%clk 0:01:35.8]} 23...
Bg7 {[%clk 0:01:39]} 24. e4 {[%clk 0:01:35.6]} 24... Rb8 {[%clk 0:01:35.4]} 25.
Bc3 {[%clk 0:01:32.5]} 25... Rb3 {[%clk 0:01:34.6]} 26. e5 {[%clk 0:01:20.8]}
26... dxe5 {[%clk 0:01:21.9]} 27. Qc4 {[%clk 0:01:20.7]} 27... Rxc3 {[%clk
0:01:01.7]} 28. Qxc3 {[%clk 0:01:21.6]} 28... exf4 {[%clk 0:01:01.7]} 29. Qc2
{[%clk 0:01:11.5]} 29... fxg3 {[%clk 0:00:59.9]} 30. d6 {[%clk 0:01:10.3]} 30...
Qb6 {[%clk 0:00:58.3]} 31. Kh1 {[%clk 0:01:09.5]} 31... Qxd6 {[%clk 0:00:57.4]}
32. Rfd1 {[%clk 0:01:04.1]} 32... Qc7 {[%clk 0:00:55.4]} 33. Bd5 {[%clk
0:00:55.6]} 33... Nb6 {[%clk 0:00:53.2]} 34. Bg2 {[%clk 0:00:43.3]} 34... c4
{[%clk 0:00:52]} 35. a5 {[%clk 0:00:42.4]} 35... Nd7 {[%clk 0:00:50.3]} 36. Qa4
{[%clk 0:00:41.3]} 36... Re7 {[%clk 0:00:46.7]} 37. Qb4 {[%clk 0:00:34.3]} 37...
Nf8 {[%clk 0:00:36]} 38. Rxb2 {[%clk 0:00:15.3]} 38... Bxb2 {[%clk 0:00:34.7]}
39. Qxb2 {[%clk 0:00:16.2]} 39... Qxa5 {[%clk 0:00:34.6]} 40. Bd5 {[%clk
0:00:15.4]} 40... c3 {[%clk 0:00:32.8]} 41. Qb3 {[%clk 0:00:14.1]} 41... Ne6
{[%clk 0:00:30.6]} 42. Re1 {[%clk 0:00:09.1]} 42... c2 {[%clk 0:00:20.9]} 43.
Rc1 {[%clk 0:00:02.6]} 43... Nd4 {[%clk 0:00:14.5]} 44. Qb8+ {[%clk 0:00:02.5]}
44... Kg7 {[%clk 0:00:14.7]} 45. Qd6 {[%clk 0:00:02.3]} 45... Qd2 {[%clk
0:00:14]} 46. Qxe7 {[%clk 0:00:01.3]} 46... Qxc1+ {[%clk 0:00:14]} 47. Kg2
{[%clk 0:00:02.2]} 47... Qd2+ {[%clk 0:00:13.6]} 48. Kxg3 {[%clk 0:00:02.4]}
48... Nf5+ {[%clk 0:00:13.9]} 49. Kg4 {[%clk 0:00:02.3]} 49... Nxe7 {[%clk
0:00:14.8]} 0-1

[Event "*** Titled Tuesday Blitz"]
[Site "Chess.com"]
[Date "2020.11.10"]
[Round "2"]
[White "frederiksvane"]
[Black "FLamps8"]
[Result "0-1"]
[WhiteElo "2694"]
[BlackElo "2502"]
[TimeControl "180+1"]
[EndTime "10:20:52 PST"]
[Termination "FLamps8 won by resignation"]

1. e4 {[%clk 0:03:00.9]} 1... c6 {[%clk 0:02:59.3]} 2. Nf3 {[%clk 0:02:58.8]}
2... d5 {[%clk 0:03:00.2]} 3. Nc3 {[%clk 0:02:58.9]} 3... Bg4 {[%clk 0:02:59.2]}
4. h3 {[%clk 0:02:58.6]} 4... Bh5 {[%clk 0:02:59]} 5. exd5 {[%clk 0:02:56.7]}
5... cxd5 {[%clk 0:02:59.9]} 6. g4 {[%clk 0:02:55.5]} 6... Bg6 {[%clk
0:02:59.4]} 7. Bb5+ {[%clk 0:02:55.4]} 7... Nc6 {[%clk 0:02:58.5]} 8. Ne5 {[%clk
0:02:55.2]} 8... Rc8 {[%clk 0:02:58.9]} 9. d4 {[%clk 0:02:55.3]} 9... e6 {[%clk
0:02:58.5]} 10. Qe2 {[%clk 0:02:46.8]} 10... Bd6 {[%clk 0:02:58.9]} 11. Nxc6
{[%clk 0:02:27.2]} 11... bxc6 {[%clk 0:02:58.1]} 12. Ba6 {[%clk 0:02:26.2]}
12... Rb8 {[%clk 0:02:55.4]} 13. h4 {[%clk 0:02:25.7]} 13... h5 {[%clk
0:02:52.6]} 14. Bd3 {[%clk 0:02:19]} 14... Bxd3 {[%clk 0:02:50.7]} 15. cxd3
{[%clk 0:02:19.9]} 15... Qb6 {[%clk 0:02:41.7]} 16. gxh5 {[%clk 0:02:03.5]}
16... Qxd4 {[%clk 0:02:41.4]} 17. Be3 {[%clk 0:01:48.3]} 17... Qe5 {[%clk
0:02:38.9]} 18. d4 {[%clk 0:01:19]} 18... Qxh5 {[%clk 0:02:38]} 19. O-O-O {[%clk
0:01:05.5]} 19... Qxe2 {[%clk 0:02:32.6]} 20. Nxe2 {[%clk 0:01:06.4]} 20... Nf6
{[%clk 0:02:33.3]} 21. Nc3 {[%clk 0:00:56.4]} 21... Ng4 {[%clk 0:02:12.4]} 22.
Rdg1 {[%clk 0:00:50.8]} 22... Nxe3 {[%clk 0:02:11.8]} 23. fxe3 {[%clk
0:00:50.9]} 23... g6 {[%clk 0:02:12.4]} 24. Kc2 {[%clk 0:00:33.6]} 24... Ke7
{[%clk 0:01:58.4]} 25. Rg4 {[%clk 0:00:22.7]} 25... Rh5 {[%clk 0:01:55.4]} 26.
e4 {[%clk 0:00:22.7]} 26... Rbh8 {[%clk 0:01:51.4]} 27. e5 {[%clk 0:00:22]}
27... Bc7 {[%clk 0:01:48]} 28. Ne2 {[%clk 0:00:22]} 28... g5 {[%clk 0:01:42.5]}
29. Rf1 {[%clk 0:00:16.5]} 29... gxh4 {[%clk 0:01:33.8]} 30. Rg7 {[%clk
0:00:15.5]} 30... Rf5 {[%clk 0:01:34.2]} 31. Rxf5 {[%clk 0:00:15.2]} 31... exf5
{[%clk 0:01:33.9]} 32. Nf4 {[%clk 0:00:16.1]} 32... Kf8 {[%clk 0:00:39.4]} 33.
Rg2 {[%clk 0:00:16.5]} 33... Rg8 {[%clk 0:00:38.9]} 34. Rxg8+ {[%clk 0:00:04.9]}
34... Kxg8 {[%clk 0:00:39.8]} 35. Kd3 {[%clk 0:00:05.4]} 35... f6 {[%clk
0:00:29.2]} 36. Ng6 {[%clk 0:00:01.7]} 36... h3 {[%clk 0:00:27.1]} 37. Ne7+
{[%clk 0:00:01.9]} 37... Kf7 {[%clk 0:00:24.6]} 38. Nxf5 {[%clk 0:00:02.8]}
38... h2 {[%clk 0:00:20.9]} 39. Ng3 {[%clk 0:00:02.7]} 39... fxe5 {[%clk
0:00:21.4]} 40. dxe5 {[%clk 0:00:03.6]} 40... Bxe5 {[%clk 0:00:22]} 41. Nh1
{[%clk 0:00:04.5]} 41... Ke6 {[%clk 0:00:22]} 42. b3 {[%clk 0:00:04.5]} 42...
Kf5 {[%clk 0:00:21.4]} 43. Nf2 {[%clk 0:00:04.9]} 43... Kf4 {[%clk 0:00:16.6]}
44. Ke2 {[%clk 0:00:05]} 44... Kg3 {[%clk 0:00:14]} 45. Kf1 {[%clk 0:00:04.4]}
45... Kf3 {[%clk 0:00:13.9]} 46. Nh1 {[%clk 0:00:03.6]} 46... Bd4 {[%clk
0:00:14.1]} 47. a4 {[%clk 0:00:02.4]} 47... a5 {[%clk 0:00:13.4]} 48. b4 {[%clk
0:00:02.2]} 48... axb4 {[%clk 0:00:13.1]} 49. a5 {[%clk 0:00:03.1]} 49... b3
{[%clk 0:00:13.8]} 50. Ke1 {[%clk 0:00:03.4]} 50... b2 {[%clk 0:00:14.7]} 51.
Kd2 {[%clk 0:00:04.3]} 51... b1=Q {[%clk 0:00:15]} 52. a6 {[%clk 0:00:05.2]}
52... Qb2+ {[%clk 0:00:14.4]} 53. Kd1 {[%clk 0:00:05.6]} 53... Ke3 {[%clk
0:00:13.3]} 0-1